bitfinex-derivatives/quotes_ETHF0:USTF0_20250403
["timestamp","ask_amount","ask_price","bid_price","bid_amount"]
[1743687462832,0.0084324,1779.1,1778.7,1.633]
[1743687463038,1.12452,1778.9,1778.7,2.75758]
[1743687463236,3.2162324,1779.1,1778.7,1.633]
[1743687463429,0.0084324,1779.1,1779.0,1.12442]
[1743687463630,0.0084324,1779.1,1778.8,1.707]
[1743687463831,1.12455,1778.8,1778.7,3.2078]
[1743687464036,0.0084324,1779.1,1778.7,5.95999]
[1743687464238,0.0084324,1779.1,1778.7,4.8354]
[1743687464239,1.12455,1778.8,1778.7,4.8354]
[1743687464430,0.0084324,1779.1,1779.0,1.12442]
[1743687464837,3.2078,1779.8,1779.2,2.81069]
[1743687465137,5.543,1780.2,1779.8,2.80981]
[1743687465330,8.7508,1780.4,1779.9,42.4276]
[1743687465531,2.80986,1779.8,1779.3,1.6543]
[1743687465838,2.80986,1779.8,1778.4,0.5624]
[1743687465839,6.01827,1779.4,1778.8,1.12451]
[1743687466143,2.81059,1779.3,1779.0,1.6276]
[1743687466329,1.12436,1779.1,1779.0,1.6276]
[1743687466546,1.12442,1779.0,1778.9,0.0084324]
[1743687466741,5.554,1779.4,1778.9,0.0084324]
[1743687466935,1.12438,1779.1,1778.9,1.1328924]
[1743687467141,1.12436,1779.1,1779.0,1.7122]
[1743687467641,1.12442,1779.0,1778.9,0.0084324]
[1743687467837,2.82102,1779.0,1778.9,0.0084324]
[1743687468143,1.12442,1779.0,1778.9,0.0084324]
[1743687468742,6.67538,1779.1,1778.9,4.3407024]
[1743687469042,1.12438,1779.1,1779.0,1.7122]
[1743687469235,1.12423,1779.3,1779.1,1.12435]
[1743687469434,1.12423,1779.3,1779.2,1.562]
[1743687470040,8.7448,1779.4,1779.2,1.562]
[1743687470041,6.6612,1779.4,1779.2,1.562]
[1743687470241,5.5304324,1779.7,1779.3,1.12421]
[1743687470441,1.12417,1779.5,1779.4,1.562]
[1743687470842,5.5304324,1779.7,1779.4,1.562]
[1743687471042,0.0084324,1779.7,1779.6,3.2078]
[1743687471343,6.01679,1780.4,1779.6,3.2078]
[1743687471344,0.156,1780.7,1779.7,2.80993]
[1743687471539,0.156,1780.7,1780.1,3.2078]
[1743687471540,4.8384,1780.6,1780.1,3.2078]
[1743687471745,4.8384,1780.6,1780.2,2.6856]
[1743687471950,1.1236,1780.3,1780.2,1.562]
[1743687472749,1.1236,1780.3,1780.1,0.0084324]
[1743687473042,1.12367,1780.2,1780.1,0.0084324]
[1743687473233,3.2078,1780.2,1779.7,3.2078]
[1743687473540,1.12392,1779.8,1779.7,3.2078]
[1743687473939,1.1239,1779.9,1779.7,44.0078]
[1743687474239,1.1239,1779.9,1779.7,45.13176]
[1743687474544,1.12398,1779.7,1779.6,0.0084324]
[1743687474741,4.33178,1779.7,1779.6,0.0084324]
[1743687475136,5.7078,1779.7,1779.2,40.8]
[1743687475338,1.12442,1779.0,1778.9,1.6543]
[1743687475642,4.33222,1779.0,1778.9,1.6543]
[1743687475842,3.2078,1779.6,1778.9,48.1621]
[1743687476034,3.2078,1779.6,1779.1,3.2078]
[1743687476240,1.12423,1779.3,1779.2,1.6251]
[1743687476442,0.0084324,1779.5,1779.4,1.12417]
[1743687476643,1.12419,1779.4,1779.2,2.7577824]
[1743687476840,0.0084324,1779.5,1779.4,1.12417]
[1743687477143,5.508,1780.6,1780.3,1.12355]
[1743687477346,1.12357,1780.4,1780.3,1.12359]
[1743687477541,1.1236,1780.3,1780.2,1.6251]
[1743687477744,1.1236,1780.3,1780.2,42.4251]
[1743687477947,1.12358,1780.4,1780.2,42.4251]
[1743687478248,1.1236,1780.3,1780.2,42.4251]
[1743687478644,1.12354,1780.4,1780.2,42.4251]
[1743687478838,1.1236,1780.3,1780.2,40.8]
[1743687479043,1.6294324,1780.5,1780.2,40.8]
[1743687479239,1.1236,1780.3,1780.2,42.4071]
[1743687479445,1.1236,1780.3,1780.2,40.8]
[1743687479941,5.491,1780.4,1780.3,1.1236]
[1743687480143,0.0084324,1780.5,1780.2,42.4071]
[1743687480449,1.1236,1780.3,1780.2,42.4071]
[1743687480754,0.0084324,1780.5,1780.4,1.12354]
[1743687481047,0.0084324,1780.5,1780.2,42.4071]
[1743687481247,1.1236,1780.3,1780.1,0.0084324]
[1743687481442,5.476,1780.4,1780.1,0.0084324]
[1743687481443,1.12367,1780.2,1780.1,0.0084324]
[1743687481646,0.0084324,1780.5,1780.4,1.12354]
[1743687482249,1.12316,1781.0,1780.7,1.12329]
[1743687482446,3.2078,1780.9,1780.5,3.2078]
[1743687482643,1.12332,1780.8,1780.5,6.00825]
[1743687482845,1.64,1780.9,1780.5,6.00823]
[1743687483041,1.12331,1780.8,1780.5,6.00823]
[1743687483250,1.64,1780.9,1780.6,1.12339]
[1743687483442,0.0084324,1780.8,1780.7,1.677]
[1743687483648,0.0084324,1780.8,1780.7,2.80035]
[1743687483843,0.0084324,1780.8,1780.7,1.677]
[1743687484042,1.1317224,1780.8,1780.7,40.8]
[1743687484243,1.12348,1780.5,1780.4,1.6976]
[1743687484445,10.3048,1780.7,1780.2,4.8848]
[1743687484650,1.1236,1780.3,1780.2,1.677]
[1743687484856,1.12367,1780.2,1780.1,0.0084324]
[1743687485048,2.83137,1780.2,1780.1,0.0084324]
[1743687485247,6.03917,1780.2,1780.1,0.0084324]
[1743687485550,16.18873,1780.2,1779.6,3.2078]
[1743687485753,10.8795,1780.2,1779.7,4.8364]
[1743687486055,10.8795,1780.2,1779.8,40.8]
[1743687486249,5.964,1780.2,1779.9,1.6286]
[1743687486451,4.9155,1780.6,1779.9,4.43818]
[1743687486646,1.12359,1780.4,1780.1,1.1237]
[1743687486845,4.33118,1780.7,1780.5,1.12348]
[1743687487046,0.0084324,1780.8,1780.7,1.12335]
[1743687487356,5.964,1781.5,1780.7,1.12335]
[1743687487649,1.7077,1781.5,1781.2,1.12299]
[1743687487855,1.7077,1781.5,1781.3,1.5903]
[1743687488053,1.12291,1781.4,1781.3,1.5903]
[1743687488247,8.5385,1782.1,1781.4,1.12291]
[1743687488446,1.12289,1781.5,1781.3,4.7981]
[1743687488854,1.12289,1781.5,1781.4,1.5903]
[1743687489156,0.0084324,1781.9,1781.4,1.5903]
[1743687489354,0.0084324,1781.9,1781.8,1.12266]
[1743687489549,0.0084324,1781.9,1781.8,4.33046]
[1743687489750,1.1310224,1781.9,1781.8,3.2078]
[1743687489954,0.0084324,1781.9,1781.8,6.83046]
[1743687490149,0.0084324,1781.9,1781.8,4.33046]
[1743687490458,0.0084324,1781.9,1781.8,5.7078]
[1743687490651,2.682,1782.4,1781.8,5.7078]
[1743687490851,1.12246,1782.2,1782.0,3.2078]
[1743687491046,1.12246,1782.2,1782.1,1.566]
[1743687491552,3.2078,1782.2,1781.6,3.2078]
[1743687491847,4.7675,1782.4,1781.8,1.566]
[1743687492045,0.0084324,1782.1,1781.8,4.7738]
[1743687492454,0.0084324,1782.1,1782.0,4.33033]
[1743687492950,1.6601,1782.7,1782.0,5.7078]
[1743687493256,3.2078,1783.1,1782.5,3.2078]
[1743687493455,1.6601,1783.1,1782.5,3.2078]
[1743687493651,1.6601,1783.1,1782.6,1.566]
[1743687493652,4.46476,1783.1,1782.6,1.566]
[1743687493852,1.12234,1782.3,1782.2,3.2078]
[1743687494055,1.12234,1782.3,1782.2,1.6299]
[1743687494653,4.8191,1782.6,1782.2,1.6299]
[1743687494856,1.12241,1782.2,1782.1,0.0084324]
[1743687495356,1.12267,1781.8,1781.6,1.12275]
[1743687495561,1.12257,1782.0,1781.8,1.12264]
[1743687495852,3.2078,1782.2,1781.9,1.6299]
[1743687496058,1.12241,1782.2,1782.0,1.12248]
[1743687496254,5.442,1782.5,1782.1,1.6299]
[1743687496255,8.6498,1782.5,1782.1,1.6299]
[1743687496448,3.2078,1782.5,1782.1,1.6299]
[1743687496647,0.0084324,1782.5,1782.1,1.6383324]
[1743687496854,1.12241,1782.2,1782.1,1.6383324]
[1743687497159,1.12241,1782.2,1782.1,0.0084324]
[1743687497352,1.12262,1781.9,1781.7,1.5904]
[1743687497555,1.6681,1782.1,1781.7,1.5904]
[1743687497852,1.6681,1782.1,1781.9,1.12257]
[1743687498052,1.6681,1782.1,1781.7,4.7982]
[1743687498258,1.12265,1781.9,1781.7,1.12271]
[1743687498452,1.6681,1782.1,1781.7,0.0084324]
[1743687498652,1.12266,1781.8,1781.7,0.0084324]
[1743687499361,9.76746,1781.8,1781.7,0.0084324]
[1743687500251,1.12264,1781.9,1781.7,0.0084324]
[1743687500448,1.12266,1781.8,1781.7,0.0084324]
[1743687500850,1.12266,1781.8,1781.7,40.8084324]
[1743687502449,1.5898,1781.9,1781.7,41.9311124]
[1743687502653,1.12266,1781.8,1781.7,43.5579124]
[1743687502853,8.7702,1782.1,1781.7,43.5579124]
[1743687502854,1.12249,1782.1,1781.7,48.4498124]
[1743687503047,2.80602,1782.2,1781.7,42.4352324]
[1743687503259,1.12247,1782.1,1781.7,45.6430324]
[1743687503456,1.12266,1781.8,1781.7,42.4352324]
[1743687503953,1.12266,1781.8,1781.7,40.8084324]
[1743687504359,8.6608,1782.3,1781.7,43.3084324]
[1743687504662,1.12266,1781.8,1781.7,41.9311224]
[1743687504954,1.6426,1782.2,1781.7,40.8084324]
[1743687505147,1.12266,1781.8,1781.7,40.8084324]
[1743687505353,1.6426,1782.2,1781.7,40.8084324]
[1743687505354,4.8504,1782.2,1781.7,40.8084324]
[1743687505550,1.12266,1781.8,1781.7,40.8084324]
[1743687505858,1.12266,1781.8,1781.7,41.9311324]
[1743687506053,5.964,1782.4,1781.7,46.5162324]
[1743687506255,0.0084324,1782.5,1782.4,1.12228]
[1743687506459,0.0084324,1782.5,1782.4,4.33008]
[1743687506759,5.60873,1783.3,1782.4,4.33008]
[1743687506760,1.12173,1783.3,1783.2,1.12175]
[1743687506956,8.73758,1783.4,1783.0,3.2078]
[1743687507152,5.964,1783.8,1783.2,6.0122]
[1743687507355,1.6519,1783.8,1783.3,3.2078]
[1743687507557,1.6519,1783.8,1783.4,40.8]
[1743687507759,1.12159,1783.5,1783.4,44.0078]
[1743687508060,1.12159,1783.5,1783.4,40.8084324]
[1743687508360,1.6519,1783.6,1783.4,44.0162324]
[1743687508552,1.1215,1783.7,1783.4,44.0162324]
[1743687508752,1.12159,1783.5,1783.4,40.8084324]
[1743687509058,9.80439,1783.5,1783.4,40.8084324]
[1743687509255,6.59659,1783.5,1783.4,40.8084324]
[1743687509451,15.76839,1783.5,1783.4,40.8084324]
[1743687509761,1.12186,1783.1,1782.9,1.12194]
[1743687510156,1.5702,1783.4,1782.8,3.2078]
[1743687510359,1.12186,1783.1,1783.0,3.2078]
[1743687510656,1.12186,1783.1,1782.9,41.92196]
[1743687510861,1.5702,1783.4,1782.9,40.8]
[1743687511055,3.2162324,1783.8,1783.2,3.2078]
[1743687511252,0.0084324,1783.8,1783.4,3.2078]
[1743687511450,0.0084324,1783.8,1783.5,1.12156]
[1743687511657,0.0084324,1783.8,1783.4,3.2078]
[1743687511859,0.0084324,1783.8,1783.7,1.12146]
[1743687512062,0.0084324,1783.8,1783.6,3.2078]
[1743687512257,0.0084324,1783.8,1783.7,1.12146]
[1743687512459,3.2078,1784.5,1784.2,1.12112]
[1743687512756,3.2078,1784.5,1784.2,3.2078]
[1743687512757,1.12103,1784.4,1784.2,3.2078]
[1743687512957,1.6578,1784.8,1784.2,3.2078]
[1743687513159,3.2078,1784.9,1784.5,3.2078]
[1743687513353,1.12096,1784.5,1784.3,40.8]
[1743687513569,1.6578,1784.8,1784.4,3.2078]
[1743687513865,0.00840759,1784.6,1784.4,4.32879]
[1743687514060,0.00840759,1784.6,1784.5,1.12096]
[1743687514451,0.00840759,1784.6,1784.5,2.5]
[1743687514657,3.2078,1785.2,1784.5,2.5]
[1743687514858,1.12079,1784.8,1784.7,3.2078]
[1743687515057,3.2078,1785.0,1784.3,40.8]
[1743687515266,4.42668,1784.9,1784.3,40.8]
[1743687515552,2.80193,1784.8,1784.3,40.8]
[1743687515754,1.6249,1784.7,1784.2,3.21620759]
[1743687515953,0.00840759,1784.7,1784.2,3.21620759]
[1743687516264,0.00840759,1784.7,1784.6,1.1209]
[1743687516566,1.12083,1784.7,1784.5,3.2078]
[1743687516766,1.12079,1784.8,1784.5,3.2078]
[1743687516973,1.12079,1784.8,1784.4,5.436]
[1743687516974,3.2078,1785.4,1784.7,4.32859]
[1743687517159,3.2078,1785.2,1784.7,3.2078]
[1743687517553,1.12077,1784.8,1784.7,3.2078]
[1743687517771,3.2078,1784.8,1784.3,3.2078]
[1743687518265,1.12098,1784.5,1784.3,3.2078]
[1743687518656,1.6621,1784.7,1784.3,4.32887]
[1743687518657,1.12092,1784.6,1784.3,4.32887]
[1743687518963,1.12074,1784.9,1784.6,1.12087]
[1743687519161,1.12074,1784.9,1784.5,3.2078]
[1743687519162,1.12076,1784.9,1784.5,4.32873]
[1743687519364,1.6621,1785.0,1784.3,3.2078]
[1743687519365,1.12098,1784.5,1784.3,3.2078]
[1743687519660,3.2078,1784.8,1784.3,3.2078]
[1743687519661,1.12102,1784.4,1784.3,3.2078]
[1743687519967,1.12108,1784.3,1784.2,0.00840759]
[1743687520177,1.12131,1784.0,1783.8,1.6777]
[1743687520361,2.78321,1784.3,1783.9,1.12134]
[1743687520665,1.12134,1783.9,1783.8,4.8855]
[1743687521059,1.12132,1784.0,1783.8,3.2078]
[1743687521260,6.01036,1784.4,1783.8,3.2078]
[1743687521569,11.401,1784.5,1783.8,3.2078]
[1743687521570,0.00840759,1784.1,1783.8,3.2078]
[1743687521760,0.00840759,1784.1,1784.0,1.12127]
[1743687521960,3.2078,1784.8,1784.4,1.12098]
[1743687522162,1.12095,1784.6,1784.3,1.12106]
[1743687522360,1.12108,1784.3,1784.2,3.2078]
[1743687522559,1.12108,1784.3,1784.0,1.5695]
[1743687522560,1.12115,1784.2,1784.1,1.5693]
[1743687522756,1.1211,1784.3,1784.1,42.3693]
[1743687522961,1.1211,1784.3,1784.1,43.49048]
[1743687523169,1.12108,1784.3,1784.2,1.5693]
[1743687523561,0.0054446,1784.4,1784.3,1.12108]
[1743687523761,0.0054446,1784.4,1784.3,4.32888]
[1743687523965,0.0054446,1784.4,1784.3,1.12108]
[1743687524166,0.0054446,1784.4,1784.3,6.82888]
[1743687524462,1.12108,1784.3,1784.2,1.5693]
[1743687524971,0.0054446,1784.4,1784.2,1.5693]
[1743687525166,1.12115,1784.2,1784.1,40.8]
[1743687525869,0.0054446,1784.4,1784.1,43.3]
[1743687526062,1.1211,1784.3,1784.2,1.682]
[1743687526262,1.12108,1784.3,1784.2,1.682]
[1743687526957,1.12108,1784.3,1784.1,40.8]
[1743687526958,1.12115,1784.2,1784.1,40.8]
[1743687528058,2.66305,1784.2,1784.1,40.8]
[1743687528667,1.5419,1784.2,1784.1,40.8]
[1743687528968,11.3884446,1784.4,1784.1,43.3]
[1743687528969,0.0054446,1784.4,1784.1,43.3]
[1743687529166,0.0054446,1784.4,1784.2,3.2078]
[1743687529374,1.12108,1784.3,1784.2,4.7361]
[1743687529573,1.12108,1784.3,1784.2,1.5283]
[1743687529968,1.12115,1784.2,1784.1,40.8]
[1743687530468,1.1214,1783.8,1783.7,0.00840759]
[1743687530675,1.12163,1783.5,1783.3,4.32946]
[1743687530973,1.12163,1783.5,1783.3,4.32948]
[1743687530974,1.12162,1783.5,1783.3,4.32948]
[1743687531172,1.12155,1783.6,1783.4,1.12162]
[1743687531468,1.6568,1783.8,1783.1,3.2078]
[1743687531675,1.1219,1783.0,1782.9,3.2078]
[1743687531972,1.1219,1783.0,1782.9,44.0078]
[1743687532667,0.00840759,1783.1,1783.0,1.1219]
[1743687533074,1e-08,1783.1,1783.0,3.6219]
[1743687533474,1.12184001,1783.1,1783.0,3.6219]
[1743687533674,1e-08,1783.1,1783.0,3.6219]
[1743687534074,1e-08,1783.1,1783.0,5.1838]
[1743687534671,1.12126,1784.1,1783.9,1.1213]
[1743687535179,1.12155,1783.6,1783.4,9.70843]
[1743687535374,4.44367,1784.0,1783.4,3.2078]
[1743687535570,3.1364,1784.4,1783.3,2.80427]
[1743687535571,2.8023,1784.6,1783.9,6.01113]
[1743687535770,2.8017,1785.0,1784.4,3.2078]
[1743687535981,2.80198,1784.8,1784.3,1.12104]
[1743687536168,1.12091,1784.6,1784.2,6.01067]
[1743687536375,1.12106,1784.4,1784.2,3.2078]
[1743687536569,1.12099,1784.5,1784.3,1.12102]
[1743687536769,1.12101,1784.5,1784.2,3.2078]
[1743687536977,3.2078,1786.2,1784.8,3.2078]
[1743687537275,1.6253,1786.2,1785.9,3.2078]
[1743687537475,9.1718,1787.0,1786.1,3.2078]
[1743687537674,9.1718,1787.0,1785.7,2.8005]
[1743687537675,1.11964,1786.6,1786.5,3.2078]
[1743687537876,1.1197,1786.5,1786.4,3.2078]
[1743687538183,1.1197,1786.5,1786.4,0.00840759]
[1743687538672,1.6253,1786.7,1786.4,3.21620759]
[1743687538979,1.6253,1786.7,1786.4,0.00840759]
[1743687539182,1.1197,1786.5,1786.4,0.00840759]
[1743687539380,4.3275,1786.5,1786.4,0.00840759]
[1743687539678,1.11983,1786.3,1786.2,40.8]
[1743687539875,1.11998,1786.1,1785.7,4.32801]
[1743687540074,1.12017,1785.8,1785.5,4.32809]
[1743687540379,3.2078,1785.9,1785.5,3.2078]
[1743687540580,1.6921,1785.7,1785.3,4.89]
[1743687540783,1.6921,1785.7,1785.5,0.00840759]
[1743687541075,1.12029,1785.6,1785.5,0.00840759]
[1743687541585,3.62029,1785.6,1785.5,0.00840759]
[1743687541779,4.32809,1785.6,1785.5,0.00840759]
[1743687542080,1.12029,1785.6,1785.5,0.00840759]
[1743687542485,12.34509,1785.6,1785.5,7.59e-06]
[1743687542671,18.30909,1785.6,1785.5,7.59e-06]
[1743687543075,12.60129,1785.6,1785.5,7.59e-06]
[1743687543285,5.517,1785.6,1785.5,7.59e-06]
[1743687543476,1.12027,1785.6,1785.5,7.59e-06]
[1743687543678,1.6921,1785.7,1785.5,1.12031759]
[1743687543986,1.12022,1785.7,1785.5,7.59e-06]
[1743687544178,0.00840758,1785.8,1785.6,1.5612]
[1743687544477,0.00840758,1785.8,1785.7,3.2078]
[1743687544883,0.00840758,1785.8,1785.7,4.32801]
[1743687545079,1.12854758,1785.8,1785.7,3.2078]
[1743687545284,1.12021,1785.7,1785.6,1.5612]
[1743687545481,1.12027,1785.6,1785.5,7.59e-06]
[1743687546289,6.82807,1785.6,1785.5,7.59e-06]
[1743687546585,18.28307,1785.6,1785.5,7.59e-06]
[1743687546785,3.2078,1785.6,1785.5,7.59e-06]
[1743687546975,5.59991,1786.1,1785.5,7.59e-06]
[1743687546976,0.7078,1789.0,1787.1,3.2078]
[1743687547174,0.1118,1788.9,1787.2,75.52427]
[1743687547382,0.1118,1788.9,1788.8,3.2078]
[1743687547781,0.1118,1788.9,1788.8,4.32606]
[1743687547981,0.1118,1788.9,1788.8,3.2078]
[1743687548182,2.6118,1788.9,1788.7,0.00840759]
[1743687548393,0.1118,1788.9,1788.8,3.2078]
[1743687548580,1.11826,1788.8,1788.7,0.00840759]
[1743687548780,2.68466,1788.8,1788.7,7.59e-06]
[1743687549094,5.18466,1788.8,1788.7,7.59e-06]
[1743687549286,2.5,1788.8,1788.7,7.59e-06]
[1743687549581,5.18466,1788.8,1788.7,7.59e-06]
[1743687549885,1.5664,1788.8,1788.7,3.20780759]
[1743687550083,5.296466,1788.8,1788.7,3.20780759]
[1743687550290,5.296466,1788.8,1788.7,7.59e-06]
[1743687550482,8.504266,1788.8,1788.7,7.59e-06]
[1743687550683,5.296466,1788.8,1788.7,7.59e-06]
[1743687551181,1.678206,1788.8,1788.7,3.20780759]
[1743687551589,0.111806,1788.8,1788.7,4.32613759]
[1743687552585,0.111806,1788.8,1788.7,3.20780759]
[1743687553183,2.611806,1788.8,1788.7,3.20780759]
[1743687553489,10.127066,1788.8,1788.7,7.59e-06]
[1743687553884,16.091066,1788.8,1788.7,7.59e-06]
[1743687554685,17.641466,1788.8,1788.7,7.59e-06]
[1743687554878,8.059206,1788.8,1788.7,3.20780759]
[1743687555285,1.662206,1788.8,1788.7,3.20780759]
[1743687555488,0.111806,1788.8,1788.7,4.32613759]
[1743687555682,0.111806,1788.8,1788.7,3.20780759]
[1743687555991,1.230066,1788.8,1788.7,3.20780759]
[1743687556182,3.730066,1788.8,1788.7,3.20780759]
[1743687556580,5.280466,1788.8,1788.7,7.59e-06]
[1743687557183,4.162206,1788.8,1788.7,3.20780759]
[1743687557685,0.111806,1788.8,1788.7,7.59e-06]
[1743687557886,1.748206,1788.8,1788.7,3.20780759]
[1743687558187,1.748206,1788.8,1788.7,4.32613759]
[1743687558386,6e-06,1788.8,1788.7,6.82613759]
[1743687558687,0.45078511,1790.3,1788.7,6.82613759]
[1743687558688,5.964,1790.2,1789.4,2.7947]
[1743687558886,5.964,1790.2,1790.0,3.2078]
[1743687558887,1.11745,1790.1,1790.0,3.2078]
[1743687559087,2.75385,1790.1,1790.0,3.2078]
[1743687559292,5.25385,1790.1,1790.0,3.2078]
[1743687559684,4.1364,1790.1,1789.9,0.00838363]
[1743687559890,2.7539,1790.1,1790.0,3.2078]
[1743687560386,5.2539,1790.1,1790.0,3.2078]
[1743687561188,2.7539,1790.1,1790.0,3.2078]
[1743687561691,0.00832013,1790.2,1790.0,4.32531]
[1743687561891,0.00832013,1790.2,1790.0,4.8485]
[1743687562088,1.11745,1790.1,1790.0,3.2078]
[1743687562691,1.12575013,1790.2,1790.0,3.2078]
[1743687562988,0.00832013,1790.2,1790.1,1.11745]
[1743687563192,0.00832013,1790.2,1790.1,2.75815]
[1743687563388,0.00832013,1790.2,1790.1,1.6407]
[1743687563593,1.12575013,1790.2,1790.0,3.2078]
[1743687563791,1.11745,1790.1,1790.0,3.2078]
[1743687564101,1.11751,1790.0,1789.9,0.00838363]
[1743687564493,9.58151,1790.0,1789.9,3.63e-06]
[1743687564698,11.26181,1790.0,1789.9,3.63e-06]
[1743687564897,1.11783,1789.5,1789.4,3.2078]
[1743687565097,2.79432,1789.7,1789.2,4.8125]
[1743687565292,6.00145,1790.1,1789.6,3.2078]
[1743687565492,1.1177,1789.7,1789.6,3.2078]
[1743687565692,1.11769,1789.8,1789.6,3.2078]
[1743687565888,1.6803,1789.9,1789.6,3.2078]
[1743687565889,1.1177,1789.7,1789.6,3.2078]
[1743687566191,1.11774,1789.7,1789.5,0.00838363]
[1743687566391,8.0393,1789.9,1789.6,3.2078]
[1743687566689,1.1177,1789.7,1789.6,3.2078]
[1743687567095,1.1177,1789.7,1789.5,1.61308363]
[1743687567096,1.11776,1789.6,1789.5,0.00838363]
[1743687567295,2.65236,1789.6,1789.5,0.00838363]
[1743687567491,11.11636,1789.6,1789.5,3.63e-06]
[1743687567799,1.11824,1788.9,1788.7,4.32611]
[1743687567993,2.79473,1789.4,1788.8,1.11826]
[1743687567994,6.35,1789.1,1788.8,1.11826]
[1743687568297,1.11809,1789.1,1788.9,4.32596]
[1743687568500,1.11809,1789.1,1789.0,1.5947]
[1743687568696,1.11814,1789.0,1788.9,3.2078]
[1743687568902,1.5346,1789.1,1788.9,3.2078]
[1743687569097,6.35238363,1789.2,1788.9,4.81088363]
[1743687569298,7.47039363,1789.2,1789.1,3.2078]
[1743687570100,1.11814,1789.0,1788.9,0.00838363]
[1743687570308,6.35238363,1789.2,1788.9,4.33435363]
[1743687570505,0.00838363,1789.2,1789.1,4.32588]
[1743687570700,1.12639363,1789.2,1789.1,3.2078]
[1743687571008,1.11814,1789.0,1788.9,1.69338363]
[1743687571201,1.11814,1789.0,1788.9,4.90118363]
[1743687571814,13.11894,1789.0,1788.9,0.00838363]
[1743687572110,13.11894,1789.0,1788.9,3.63e-06]
[1743687572313,3.61814,1789.0,1788.9,3.63e-06]
[1743687573013,5.24284,1789.0,1788.9,3.63e-06]
[1743687573211,1.11814,1789.0,1788.9,3.63e-06]
[1743687573609,5.24284,1789.0,1788.9,3.63e-06]
[1743687573814,8.45064,1789.0,1788.9,3.63e-06]
[1743687574016,14.41464,1789.0,1788.9,3.63e-06]
[1743687574908,11.20684,1789.0,1788.9,3.63e-06]
[1743687575319,14.41464,1789.0,1788.9,3.63e-06]
[1743687576913,11.20684,1789.0,1788.9,3.63e-06]
[1743687577316,14.92584,1789.0,1788.9,3.63e-06]
[1743687577518,17.42584,1789.0,1788.9,3.63e-06]
[1743687577714,17.42584,1789.0,1788.9,3.20780363]
[1743687577715,2.74284,1789.0,1788.9,3.20780363]
[1743687577923,0.00838363,1789.2,1788.9,3.20780363]
[1743687578120,0.00838363,1789.2,1789.1,4.32588]
[1743687578420,1e-08,1789.2,1789.1,46.43762379]
[1743687578620,1e-08,1789.2,1789.1,50.56730026]
[1743687578813,1e-08,1789.2,1789.1,52.52008809]
[1743687579012,1e-08,1789.2,1789.1,48.90200809]
[1743687579220,1.11801001,1789.2,1789.1,48.90194576]
[1743687579524,1.11801001,1789.2,1789.1,48.09503034]
[1743687579724,1.11801001,1789.2,1789.1,5.66493034]
[1743687580019,1.11801001,1789.2,1789.1,2.45713034]
[1743687580222,3.61801001,1789.2,1789.1,1.95278783]
[1743687580521,3.61801001,1789.2,1789.1,0.75107224]
[1743687581211,1e-08,1789.2,1789.1,3.95887224]
[1743687581414,1e-08,1789.2,1789.1,5.62595927]
[1743687581415,1.11801001,1789.2,1789.1,5.62595927]
[1743687582017,1.11801001,1789.2,1789.1,5.1305092]
[1743687582212,3.61801001,1789.2,1789.1,5.1305092]
[1743687582417,9.79901001,1789.2,1789.1,5.1305092]
[1743687582620,7.29901001,1789.2,1789.1,3.95887224]
[1743687584015,1.11801001,1789.2,1789.1,3.95887224]
[1743687584212,1.11801001,1789.2,1789.1,4.45495388]
[1743687584426,1.11801001,1789.2,1789.1,5.10750205]
[1743687584923,1.11801001,1789.2,1789.1,3.95887224]
[1743687585314,1.11801001,1789.2,1789.1,4.45464519]
[1743687585520,1.11801001,1789.2,1789.1,3.95887224]
[1743687585721,3.61801001,1789.2,1789.1,3.95887224]
[1743687586123,3.61801001,1789.2,1789.1,3.2078]
[1743687586428,1.11814,1789.0,1788.9,3.20780363]
[1743687586624,7.26614,1789.0,1788.9,3.20780363]
[1743687586824,9.76614,1789.0,1788.9,3.20780363]
[1743687587222,9.76614,1789.0,1788.9,3.63e-06]
[1743687587719,11.31474,1789.0,1788.9,3.63e-06]
[1743687588032,8.81474,1789.0,1788.9,3.63e-06]
[1743687588325,7.26614,1789.0,1788.9,3.63e-06]
[1743687588917,7.26614,1789.0,1788.9,3.20780363]
[1743687589122,7.26614,1789.0,1788.9,0.7184294]
[1743687589424,15.73014,1789.0,1788.9,9.4e-06]
[1743687589831,17.27614,1789.0,1788.9,9.4e-06]
[1743687590027,17.27614,1789.0,1788.0,2.68503]
[1743687590028,1.11867,1788.2,1788.1,3.2078]
[1743687590327,1.11867,1788.2,1788.1,5.26022409]
[1743687590328,1.11864,1788.2,1788.1,5.26022409]
[1743687590522,8.87521,1788.5,1788.1,5.26022409]
[1743687590727,6.079,1788.5,1788.3,3.2078]
[1743687590923,7.19746,1788.5,1788.4,2.05242409]
[1743687591122,7.18719,1789.0,1788.5,2.79614]
[1743687591323,8.86436,1789.0,1788.6,5.25632409]
[1743687591520,1.11826,1788.8,1788.7,1.5507]
[1743687591725,1.11845,1788.5,1788.4,4.35106596]
[1743687591921,12.033,1789.0,1788.4,4.84894577]
[1743687592222,5.58881,1789.7,1788.4,4.84894577]
[1743687592223,3.2078,1790.0,1789.9,1.11758]
[1743687592423,3.66448067,1791.2,1789.9,15.9287774]
[1743687592635,3.2078,1791.5,1790.7,3.2078]
[1743687592822,3.2078,1791.5,1790.9,3.2078]
[1743687593023,4.8537,1791.5,1790.9,3.2078]
[1743687593226,3.2078,1791.1,1790.5,3.2078]
[1743687593429,8.22650797,1791.0,1790.5,3.2078]
[1743687593730,0.111675,1790.9,1790.8,4.32482]
[1743687593923,1.228625,1790.9,1790.8,3.2078]
[1743687594125,0.111675,1790.9,1790.8,3.2078]
[1743687594427,0.111675,1790.9,1790.8,6.82482]
[1743687594626,0.16860797,1791.0,1790.9,1.11695]
[1743687594827,0.16860797,1791.0,1790.9,2.64665]
[1743687595024,3.21747603,1792.8,1791.5,3.2078]
[1743687595231,3.21747603,1792.8,1792.3,3.2078]